[Event "45th FIDE Olympiad 2024"]
[Site "Budapest"]
[Date "2024.09.13"]
[Round "3.47"]
[White "Miranda Mesa, Elier"]
[Black "Vallejo Pons, Francisco"]
[Result "1/2-1/2"]
[ECO "B72"]
[WhiteElo "2512"]
[BlackElo "2657"]
[Annotator "TA"]
[PlyCount "69"]
[EventDate "2024.09.05"]
[EventType "team-tourn"]
[EventCountry "HUN"]
[SourceTitle "playchess.com"]
[Source "ChessBase"]
[SourceQuality "1"]
[WhiteTeam "Cuba"]
[BlackTeam "Spain"]
[WhiteTeamCountry "CUB"]
[BlackTeamCountry "ESP"]
[TimeControl "40/5400+30:1800+30"]

{[%evp 18,69,7,0,20,0,1,0,0,0,-1,-9,-4,0,17,-1,0,-6,37,8,9,7,7,0,0,0,0,0,0,0,0,-10,0,-8,0,0,0,0,0,0,0,-13,-10,-13,-15,-8,-8,-9,-8,-11,-12,-14,-13,-16]} 1. e4 {[%emt 0:00:06]} c5 {[%emt 0:00:08]} 2. Nf3 {[%emt 0:00:09]} Nc6 {[%emt 0:00:17]} 3. d4 {[%emt 0:00:21]} cxd4 {[%emt 0:00:07]} 4. Nxd4 {[%emt 0:00:03]} Nf6 {[%emt 0:00:12]} 5. Nc3 {[%emt 0:00:06]} d6 {[%emt 0:00:10]} 6. Be2 {[%emt 0:02:47]} g6 {[%emt 0:01:37]} 7. Be3 {[%emt 0:01:56]} Bg7 {[%emt 0:01:31][%cal Bf8g7,Bg7f6,Bf6e5][%mdl 32]} 8. Qd2 {[%emt 0:00:21]} Ng4 {[%emt 0:07:18]} 9. Bxg4 {[%emt 0:00:31]} Bxg4 {[%emt 0:00:04]} 10. f3 {[%emt 0:00:52] [#] Threatens to win with Nxc6.} Be6 {[%emt 0:01:21]} 11. Nxe6 {[%emt 0:04:09]} fxe6 {[%emt 0:00:16]} 12. Bh6 {[%emt 0:17:52]} Bf6 {[%emt 0:07:26]} 13. Bg5 {[%emt 0:11:59]} Be5 {[%emt 0:01:23]} 14. Nd1 {[%emt 0:03:38][%cal Bc3d1,Bd1f2,Bf2d3][%mdl 32]} Qb6 {[%emt 0:06:32][%cal Oe5h2]} 15. Be3 {[%emt 0:03:51]} Qa6 {[%emt 0:03:26][%cal Od6d5]} 16. Qe2 {[%emt 0:02:09]} Rb8 {[%emt 0:09:42]} (16... Qxe2+ {simplifies} 17. Kxe2 b5 18. c3 a5) 17. c3 {[%emt 0:03:32]} d5 {[%emt 0:09:51]} (17... Qxe2+ {simplifies} 18. Kxe2 b5 19. a3 a5) 18. Nf2 {[%emt 0:14:06]} d4 {[%emt 0:04:59] The position is equal.} 19. cxd4 {[%emt 0:02:11]} Nxd4 {[%emt 0:06:55]} 20. Bxd4 {[%emt 0:03:47]} (20. Qxa6 {feels hotter.} Nc2+ 21. Kd2 bxa6 22. Rab1) 20... Bxd4 {[%emt 0:01:59]} 21. Qxa6 {[%emt 0:01:04]} bxa6 {[%emt 0:01:17]} 22. Nd3 {[%emt 0:00:18]} Bxb2 {[%emt 0:05:04]} 23. Rb1 {[%emt 0:01:10]} Bc3+ {[%emt 0:02:27]} 24. Ke2 {[%emt 0:00:08]} Kf7 {[%emt 0:04:37]} 25. Rhc1 {[%emt 0:02:04] [#] Strongly threatening Rxb8.} Bd4 {[%emt 0:04:15]} 26. Rxb8 {[%emt 0:04:28]} Rxb8 $11 {[%emt 0:00:03][%mdl 4096] Endgame. KRB-KRN} 27. Rc4 {[%emt 0:00:32]} e5 {[%emt 0:02:09]} 28. f4 {[%emt 0:05:00]} Rb5 {[%emt 0:08:27]} 29. fxe5 {[%emt 0:04:35]} Bxe5 {[%emt 0:02:37]} 30. a4 {[%emt 0:00:54]} Ra5 {[%emt 0:00:06]} 31. h3 {[%emt 0:02:29]} Bd6 {[%emt 0:02:28]} 32. Ke3 {[%emt 0:00:31]} h5 {[%emt 0:01:22]} 33. Kf3 {[%emt 0:04:06]} Rg5 {[%emt 0:02:35]} 34. g4 {[%emt 0:00:50]} Ra5 {[%emt 0:01:03]} 35. h4 {[%emt 0:03:07] An interesting draw.   Weighted Error Value: White=0.04 (flawless) /Black=0.06 (flawless) .  Inaccurate:     	White=1     	Black=1      OK:         	White=16    	Black=5      Best:        	White=2     	---} 1/2-1/2

[Event "45th FIDE Olympiad 2024"]
[Site "Budapest"]
[Date "2024.09.13"]
[Round "3.47"]
[White "Lusako, Shedrack"]
[Black "Angel, Estanislao Gatjens C"]
[Result "1/2-1/2"]
[ECO "D02"]
[WhiteElo "1760"]
[BlackElo "1849"]
[Annotator "NA RC"]
[PlyCount "118"]
[EventDate "2024.09.05"]
[EventType "team-tourn"]
[EventCountry "HUN"]
[SourceTitle "playchess.com"]
[Source "ChessBase"]
[SourceQuality "1"]
[WhiteTeam "Tanzania"]
[BlackTeam "Equatorial Guinea"]
[WhiteTeamCountry "TAN"]
[TimeControl "40/5400+30:1800+30"]

1. Nf3 d5 2. d4 c6 3. Bf4 Bf5 4. e3 e6 5. Bd3 Bxd3 6. Qxd3 Qa5+ 7. Nbd2 Qa6 8. c4 Nf6 9. O-O Nbd7 10. Qc2 Be7 11. Ne5 O-O 12. Nxd7 Nxd7 13. c5 Qa5 14. b4 Qd8 15. a4 Bf6 16. Bd6 Re8 17. Nf3 e5 18. Rab1 e4 19. Nd2 Be7 20. Bg3 Bh4 21. Bd6 Be7 22. b5 Bxd6 23. bxc6 Bxh2+ 24. Kxh2 Qh4+ 25. Kg1 bxc6 26. f3 f5 27. fxe4 fxe4 28. Rf4 Qg3 29. Nf1 Qg5 30. Rb7 Nf6 31. a5 h5 32. Qf2 Reb8 33. Qb2 Rf8 34. Qf2 Rfb8 35. Qb2 Rc8 36. Qf2 Qg6 37. Qg3 Qxg3 38. Nxg3 Rcb8 39. Rc7 Rc8 40. Rb7 Rab8 41. Rxa7 Ra8 42. Re7 Rxa5 43. Nf5 Ng4 44. Rxg7+ Kh8 45. Rg5 Ra1+ 46. Rf1 Rxf1+ 47. Kxf1 Nf6 48. Ng3 Rg8 49. Rxg8+ Kxg8 50. Nf5 Kf7 51. Nd6+ Ke6 52. Nb7 Kd7 53. Na5 Ng4 54. Ke2 h4 55. Nb7 Nh6 56. Na5 Nf5 57. Kf2 Kc7 58. Nb3 Kb7 59. Na5+ Kc7 1/2-1/2

[Event "45th FIDE Olympiad 2024"]
[Site "Budapest"]
[Date "2024.09.13"]
[Round "3.48"]
[White "Pichot, Alan"]
[Black "Almeida Quintana, Omar"]
[Result "1-0"]
[ECO "C41"]
[WhiteElo "2628"]
[BlackElo "2492"]
[Annotator "TA"]
[PlyCount "57"]
[EventDate "2024.09.05"]
[EventType "team-tourn"]
[EventCountry "HUN"]
[SourceTitle "playchess.com"]
[Source "ChessBase"]
[SourceQuality "1"]
[WhiteTeam "Spain"]
[BlackTeam "Cuba"]
[WhiteTeamCountry "ESP"]
[BlackTeamCountry "CUB"]
[TimeControl "40/5400+30:1800+30"]

{[%evp 9,57,21,24,27,26,22,34,40,63,63,78,82,75,20,66,56,88,92,97,89,103,92,143,128,131,142,130,160,166,176,253,245,237,184,173,187,250,252,335,280,441,444,520,522,583,557,1820,1750,1750,1217]} 1. e4 {[%emt 0:00:14]} d6 {[%emt 0:00:06]} 2. d4 {[%emt 0:00:12]} Nf6 {[%emt 0:00:08]} 3. Nc3 {[%emt 0:00:06]} e5 {[%emt 0:00:04]} 4. Nf3 {[%emt 0:00:16]} Nbd7 {[%emt 0:00:07]} 5. Rg1 {[%emt 0:00:45]} c6 {[%emt 0:00:06]} 6. g4 {[%emt 0:00:43]} h6 {[%emt 0:01:47]} 7. Be3 {[%emt 0:03:30]} b5 {[%emt 0:04:30]} 8. a3 {[%emt 0:02:39] White is slightly better.} Bb7 {[%emt 0:03:17]} 9. h4 {[%emt 0:06:15]} h5 {[%emt 0:05:09]} 10. gxh5 {[%emt 0:01:34]} Rxh5 {[%emt 0:02:56] [#]} 11. Bh3 {[%emt 0:10:37]} (11. Rg5 $1 $16) 11... g6 {[%emt 0:12:16]} (11... exd4 $1 $11 {is superior.} 12. Bxd4 (12. Qxd4 Ne5 $11) 12... Ne5) 12. Rg5 {[%emt 0:07:51] White is more active.} Be7 {[%emt 0:09:56] Black is now going downhill.} 13. Rxh5 {[%emt 0:02:47]} Nxh5 {[%emt 0:02:26]} 14. Bxd7+ {[%emt 0:02:47]} Qxd7 {[%emt 0:00:05]} 15. dxe5 {[%emt 0:00:08]} O-O-O {[%emt 0:08:34]} ({Black should play} 15... a5) 16. Qe2 {[%emt 0:08:09]} ({Don't play} 16. Bxa7 $6 Qh3 17. e6 fxe6 $11) 16... dxe5 {[%emt 0:00:46]} 17. Nxe5 {[%emt 0:03:08]} (17. Bxa7 $2 {too greedy.} Nf4 18. Rd1 Nxe2 $19) 17... Qe6 {[%emt 0:01:52]} 18. Nd3 {[%emt 0:00:25]} Bxh4 {[%emt 0:04:11]} 19. Bxa7 {[%emt 0:08:15]} Qh3 {[%emt 0:11:24]} (19... Nf6 $142 20. O-O-O Nd7) 20. O-O-O $18 {[%emt 0:02:32]} Bg5+ {[%emt 0:00:15][%cal Bh4g5,Bg5h6,Bh6g7][%mdl 32]} 21. Kb1 {[%emt 0:01:05] [#] And now Bb6 would win.} Nf4 {[%emt 0:02:04]} 22. Qd2 {[%emt 0:06:18]} Ne6 {[%emt 0:09:58]} (22... Qf3 $142 23. Qe3 Qxe3 24. Bxe3 Ne6 25. Bxg5 Nxg5) 23. f4 {[%emt 0:01:21]} Bh6 {[%emt 0:03:25]} 24. Bb6 {[%emt 0:05:44]} Rd7 {[%emt 0:01:48]} (24... Bxf4 {was necessary.} 25. Nxf4 Rxd2 26. Nxh3 Rxd1+ 27. Nxd1 c5) 25. Qf2 {[%emt 0:02:30] White is clearly winning.} Bg7 {[%emt 0:04:59]} 26. f5 {[%emt 0:02:00]} gxf5 {[%emt 0:00:28]} 27. exf5 {[%emt 0:00:33]} Ng5 {[%emt 0:04:04]} 28. Re1 {[%emt 0:00:47]} Qh8 {[%emt 0:04:02] Repels Re8+} 29. Qe3 {[%emt 0:00:20] Weighted Error Value: White=0.13 (very precise) /Black=0.43.  Mistake:       	White=1     	Black=5      Inaccurate:     	---       	Black=3      OK:         	White=10    	Black=3      Best:        	White=3     	Black=1} 1-0

[Event "45th FIDE Olympiad 2024"]
[Site "Budapest"]
[Date "2024.09.13"]
[Round "3.49"]
[White "Vachier-Lagrave, Maxime"]
[Black "Kadric, Denis"]
[Result "1/2-1/2"]
[ECO "C42"]
[WhiteElo "2731"]
[BlackElo "2553"]
[Annotator "TA"]
[PlyCount "53"]
[EventDate "2024.09.05"]
[EventType "team-tourn"]
[EventCountry "HUN"]
[SourceTitle "playchess.com"]
[Source "ChessBase"]
[SourceQuality "1"]
[WhiteTeam "France"]
[BlackTeam "Montenegro"]
[WhiteTeamCountry "FRA"]
[BlackTeamCountry "MNE"]
[TimeControl "40/5400+30:1800+30"]

{[%evp 16,53,35,40,41,39,45,44,48,29,65,56,61,37,38,8,9,10,16,-20,0,0,0,-12,-11,-19,0,-15,-26,-20,0,0,0,0,0,0,0,0,0,0]} 1. e4 {[%emt 0:03:39]} e5 {[%emt 0:00:23]} 2. Nf3 {[%emt 0:00:04]} Nf6 {[%emt 0:00:04][%cal Bg8f6,Bf6e4,Be4d2][%mdl 32]} 3. Nxe5 {[%emt 0:00:13]} d6 {[%emt 0:00:02]} 4. Nf3 {[%emt 0:00:07]} Nxe4 {[%emt 0:00:04]} 5. d4 {[%emt 0:00:04]} d5 {[%emt 0:00:11]} 6. Bd3 {[%emt 0:00:04]} Be7 {[%emt 0:00:09]} 7. O-O {[%emt 0:00:11][%cal Bh1f1,Bf1e1,Be1e2][%mdl 32]} Nc6 {[%emt 0:00:19]} 8. Nbd2 {[%emt 0:00:42]} Bf5 {[%emt 0:00:36]} 9. Re1 {[%emt 0:00:24]} Nxd2 {[%emt 0:00:03]} 10. Qxd2 {[%emt 0:00:06]} ({Reject} 10. Bxf5 Nxf3+ 11. gxf3 (11. Qxf3 Nxd4 12. Qh3 Nxf5 $17) 11... O-O $11) 10... Bxd3 {[%emt 0:00:03]} 11. Qxd3 {[%emt 0:00:05]} O-O {[%emt 0:00:03] White is slightly better.} 12. Re2 {[%emt 0:05:24]} a6 {[%emt 0:13:17]} 13. Bf4 {[%emt 0:04:42]} Qd7 {[%emt 0:03:06]} 14. h4 {[%emt 0:09:04][%cal Bh2h4,Bh4h5,Bh5h6][%mdl 32] White is more active.} Rae8 {[%emt 0:00:57]} 15. h5 {[%emt 0:06:40]} Bd8 {[%emt 0:09:47]} 16. Rxe8 {[%emt 0:06:36]} Rxe8 {[%emt 0:00:05]} 17. h6 {[%emt 0:00:05]} Re4 {[%emt 0:06:42]} 18. Be3 {[%emt 0:02:10]} g6 {[%emt 0:00:11]} 19. c4 {[%emt 0:02:49]} Be7 {[%emt 0:03:38]} 20. Rc1 {[%emt 0:06:15]} f6 {[%emt 0:08:18]} 21. g3 {[%emt 0:14:01]} Bf8 {[%emt 0:03:48]} 22. Nd2 {[%emt 0:08:07]} Re8 {[%emt 0:07:06] The position is equal.} 23. Qb3 $1 {[%emt 0:03:48]} Na5 {[%emt 0:00:10]} 24. Qc3 {[%emt 0:00:06]} Nc6 {[%emt 0:00:08]} 25. Qb3 $1 {[%emt 0:00:04][%csl LRb7,LRd5]} Na5 {[%emt 0:01:56]} 26. Qc3 {[%emt 0:00:06]} Nc6 {[%emt 0:00:02]} 27. Qb3 $1 {[%emt 0:00:48][%csl LRb7,LRd5] Weighted Error Value: White=0.08 (flawless) /Black=0.07 (flawless) .  Inaccurate:     	White=2     	Black=1      OK:         	White=6     	Black=9      Strong:       	White=3     	---} 1/2-1/2

[Event "45th FIDE Olympiad 2024"]
[Site "Budapest"]
[Date "2024.09.13"]
[Round "3.49"]
[White "Morazo, John Ranel"]
[Black "Murphy, Jones"]
[Result "1-0"]
[ECO "D01"]
[WhiteElo "2200"]
[BlackElo "2021"]
[Annotator "RC"]
[PlyCount "47"]
[EventDate "2024.09.05"]
[EventType "team-tourn"]
[EventCountry "HUN"]
[SourceTitle "playchess.com"]
[Source "ChessBase"]
[SourceQuality "1"]
[WhiteTeam "Palau"]
[BlackTeam "Dominica"]
[WhiteTeamCountry "PAL"]
[BlackTeamCountry "DMA"]
[TimeControl "40/5400+30:1800+30"]

1. d4 Nf6 2. Nc3 d5 3. Bg5 Nbd7 4. f3 c6 5. e4 dxe4 6. fxe4 Qa5 7. e5 Nxe5 8. Bxf6 exf6 9. dxe5 fxe5 10. Bc4 Bb4 11. Qf3 O-O 12. Nge2 e4 13. Qf4 Kh8 14. O-O-O b5 15. Bb3 f5 16. h4 Qb6 17. h5 h6 18. Qe5 Bc5 19. Kb1 Be3 20. Rd6 a5 21. Nd5 Qc5 22. Ne7 Kh7 23. Ng6 Rf6 24. Bg8+ 1-0

[Event "45th FIDE Olympiad 2024"]
[Site "Budapest"]
[Date "2024.09.13"]
[Round "3.50"]
[White "Petrov, Nikita"]
[Black "Maurizzi, Marc`andria"]
[Result "1-0"]
[ECO "E94"]
[WhiteElo "2574"]
[BlackElo "2595"]
[Annotator "RC"]
[PlyCount "85"]
[EventDate "2024.09.05"]
[EventType "team-tourn"]
[EventCountry "HUN"]
[SourceTitle "playchess.com"]
[Source "ChessBase"]
[SourceQuality "1"]
[WhiteTeam "Montenegro"]
[BlackTeam "France"]
[WhiteTeamCountry "MNE"]
[BlackTeamCountry "FRA"]
[TimeControl "40/5400+30:1800+30"]

1. Nf3 {[%emt 0:00:04]} Nf6 {[%emt 0:00:05]} 2. c4 {[%emt 0:00:14]} g6 {[%emt 0:01:13]} 3. Nc3 {[%emt 0:00:43]} Bg7 {[%emt 0:02:03]} 4. e4 {[%emt 0:02:07]} d6 {[%emt 0:00:06]} 5. d4 {[%emt 0:00:10]} O-O {[%emt 0:00:07]} 6. Be2 {[%emt 0:00:32]} e5 {[%emt 0:00:09]} 7. O-O {[%emt 0:00:32]} Na6 {[%emt 0:00:04]} 8. Be3 {[%emt 0:02:28]} c6 {[%emt 0:01:53]} 9. d5 {[%emt 0:05:13]} Ng4 {[%emt 0:00:22]} 10. Bg5 {[%emt 0:00:43]} f6 {[%emt 0:00:05]} 11. Bd2 {[%emt 0:00:36]} c5 {[%emt 0:03:12]} 12. Ne1 {[%emt 0:08:04]} Nh6 {[%emt 0:01:08]} 13. Nd3 {[%emt 0:00:41]} Nf7 {[%emt 0:00:52]} 14. a3 {[%emt 0:03:55]} b6 {[%emt 0:00:53]} 15. Rb1 {[%emt 0:07:18]} Nc7 {[%emt 0:00:46]} 16. b4 {[%emt 0:00:37]} f5 {[%emt 0:02:29]} 17. a4 {[%emt 0:05:54]} a5 {[%emt 0:10:25]} 18. bxc5 {[%emt 0:05:07]} bxc5 {[%emt 0:00:59]} 19. exf5 {[%emt 0:00:34]} gxf5 {[%emt 0:00:54]} 20. Nb5 {[%emt 0:00:37]} Na6 {[%emt 0:09:17]} 21. f4 {[%emt 0:00:56]} e4 {[%emt 0:03:04]} 22. Nf2 {[%emt 0:00:26]} Nb4 {[%emt 0:00:54]} 23. Rb3 {[%emt 0:01:07]} Kh8 {[%emt 0:09:41]} 24. g4 {[%emt 0:09:19]} Bd7 {[%emt 0:05:35]} 25. Kh1 {[%emt 0:05:50]} Bxb5 {[%emt 0:14:09]} 26. axb5 {[%emt 0:03:55]} a4 {[%emt 0:01:29]} 27. Ra3 {[%emt 0:01:02]} Qe7 {[%emt 0:01:28]} 28. Be3 {[%emt 0:04:23]} fxg4 {[%emt 0:15:03]} 29. Bxg4 {[%emt 0:06:26]} Nh6 {[%emt 0:04:05]} 30. Be6 {[%emt 0:09:12]} Nf5 {[%emt 0:00:51]} 31. Bxf5 {[%emt 0:00:14]} Rxf5 {[%emt 0:00:04]} 32. Rxa4 {[%emt 0:00:03]} Rg8 {[%emt 0:01:29]} 33. Rg1 {[%emt 0:02:18]} Rff8 {[%emt 0:01:51]} 34. b6 {[%emt 0:05:41]} Ra8 {[%emt 0:02:27]} 35. Rxa8 {[%emt 0:01:58]} Rxa8 {[%emt 0:00:01]} 36. Qb1 {[%emt 0:04:25]} Ra3 {[%emt 0:00:51]} 37. Bc1 {[%emt 0:02:30]} e3 {[%emt 0:00:04]} 38. Qe4 {[%emt 0:00:46]} Qxe4+ {[%emt 0:01:20]} 39. Nxe4 {[%emt 0:00:04]} Ra6 {[%emt 0:00:05]} 40. b7 {[%emt 0:01:32]} Rb6 {[%emt 0:00:00]} 41. Nxd6 {[%emt 0:03:24]} e2 {[%emt 0:00:30]} 42. Bb2 {[%emt 0:01:47]} Bxb2 {[%emt 0:00:13]} 43. Nf7# {[%emt 0:00:04]} 1-0

[Event "45th FIDE Olympiad 2024"]
[Site "Budapest"]
[Date "2024.09.13"]
[Round "3.50"]
[White "Bridet, Robert"]
[Black "Tan, Santiago Jr"]
[Result "1/2-1/2"]
[ECO "B11"]
[WhiteElo "1697"]
[BlackElo "1903"]
[Annotator "NA RC"]
[PlyCount "117"]
[EventDate "2024.09.05"]
[EventType "team-tourn"]
[EventCountry "HUN"]
[SourceTitle "playchess.com"]
[Source "ChessBase"]
[SourceQuality "1"]
[WhiteTeam "Dominica"]
[BlackTeam "Palau"]
[WhiteTeamCountry "DMA"]
[BlackTeamCountry "PAL"]
[TimeControl "40/5400+30:1800+30"]

1. e4 c6 2. Nf3 d5 3. Nc3 dxe4 4. Nxe4 Bf5 5. Ng3 Bg6 6. Ne5 Nf6 7. Nxg6 hxg6 8. Bc4 e6 9. d3 Be7 10. Bd2 Nbd7 11. Bc3 a5 12. a4 Qc7 13. h3 Nb6 14. Bb3 Nbd5 15. Ne2 Rd8 16. Bxd5 cxd5 17. Nd4 b6 18. Nb5 Qb8 19. Qe2 O-O 20. Be5 Qb7 21. O-O Rc8 22. c3 Rfd8 23. Rfe1 Bf8 24. Qf3 Ne8 25. Bg3 Qd7 26. Re2 Nd6 27. Nd4 Nf5 28. Nxf5 gxf5 29. Qe3 Qc6 30. Bh4 Re8 31. Qf4 f6 32. Qd2 Bd6 33. f4 e5 34. Bg3 e4 35. d4 Kf7 36. Re3 Qc7 37. Qf2 Rh8 38. Rf1 Qc4 39. Qc2 Qxd4 40. Qe2 Qxa4 41. Kh1 Qc4 42. Qd1 a4 43. Rf2 Bc5 44. Rfe2 Bxe3 45. Rxe3 g6 46. Bf2 Ke6 47. Rg3 Rhg8 48. Bxb6 Rb8 49. Ba5 Rxb2 50. Bb4 Qa2 51. Qd4 Qc4 52. Qb6+ Kd7 53. Qd6+ Kc8 54. Qe6+ Kb7 55. Qxg8 Qf1+ 56. Kh2 Rxg2+ 57. Rxg2 Qxf4+ 58. Kh1 Qf1+ 59. Kh2 1/2-1/2

[Event "45th FIDE Olympiad 2024"]
[Site "Budapest"]
[Date "2024.09.13"]
[Round "3.51"]
[White "Fressinet, Laurent"]
[Black "Djukic, Nikola"]
[Result "1/2-1/2"]
[ECO "E52"]
[WhiteElo "2616"]
[BlackElo "2515"]
[Annotator "RC"]
[PlyCount "67"]
[EventDate "2024.09.05"]
[EventType "team-tourn"]
[EventCountry "HUN"]
[SourceTitle "playchess.com"]
[Source "ChessBase"]
[SourceQuality "1"]
[WhiteTeam "France"]
[BlackTeam "Montenegro"]
[WhiteTeamCountry "FRA"]
[BlackTeamCountry "MNE"]
[TimeControl "40/5400+30:1800+30"]

1. d4 {[%emt 0:00:05]} Nf6 {[%emt 0:00:07]} 2. c4 {[%emt 0:00:06]} e6 {[%emt 0:00:06]} 3. Nf3 {[%emt 0:00:17]} d5 {[%emt 0:00:13]} 4. Nc3 {[%emt 0:00:17]} Bb4 {[%emt 0:00:20]} 5. e3 {[%emt 0:03:04]} O-O {[%emt 0:00:26]} 6. Bd2 {[%emt 0:00:03]} b6 {[%emt 0:01:31]} 7. cxd5 {[%emt 0:02:36]} exd5 {[%emt 0:00:20]} 8. Bd3 {[%emt 0:00:04]} Bd6 {[%emt 0:05:34]} 9. O-O {[%emt 0:07:37]} Bb7 {[%emt 0:00:39]} 10. Rc1 {[%emt 0:05:07]} c5 {[%emt 0:06:57]} 11. Nb5 {[%emt 0:17:09]} Be7 {[%emt 0:00:59]} 12. Ne5 {[%emt 0:04:25]} a6 {[%emt 0:05:49]} 13. Nc3 {[%emt 0:01:54]} Nc6 {[%emt 0:00:48]} 14. Nxc6 {[%emt 0:08:06]} Bxc6 {[%emt 0:00:06]} 15. dxc5 {[%emt 0:00:03]} bxc5 {[%emt 0:00:23]} 16. Ne2 {[%emt 0:00:29]} Qb6 {[%emt 0:16:35]} 17. Bc3 {[%emt 0:06:26]} Rfd8 {[%emt 0:18:49]} 18. Ng3 {[%emt 0:13:20]} g6 {[%emt 0:02:56]} 19. Qe1 {[%emt 0:02:54]} a5 {[%emt 0:03:13]} 20. Qe2 {[%emt 0:07:09]} a4 {[%emt 0:07:56]} 21. Rfd1 {[%emt 0:03:26]} Bd7 {[%emt 0:03:23]} 22. Qe1 {[%emt 0:07:15]} Be6 {[%emt 0:00:45]} 23. Ne2 {[%emt 0:03:02]} Nh5 {[%emt 0:09:50]} 24. Bc2 {[%emt 0:03:37]} Bg5 {[%emt 0:02:53]} 25. Rb1 {[%emt 0:01:10]} Ng7 {[%emt 0:01:33]} 26. b4 {[%emt 0:01:17]} axb3 {[%emt 0:00:50]} 27. axb3 {[%emt 0:00:43]} Ra2 {[%emt 0:04:46]} 28. Rb2 {[%emt 0:01:13]} Rda8 {[%emt 0:01:23]} 29. Rxa2 {[%emt 0:00:57]} Rxa2 {[%emt 0:00:05]} 30. Ra1 {[%emt 0:00:56]} Qa7 {[%emt 0:01:07]} 31. Bb2 {[%emt 0:00:40]} Ne8 {[%emt 0:01:54]} 32. Rxa2 {[%emt 0:00:23]} Qxa2 {[%emt 0:00:06]} 33. Qa1 {[%emt 0:00:31]} Qxa1+ {[%emt 0:00:13]} 34. Bxa1 {[%emt 0:00:04]} 1/2-1/2

[Event "45th FIDE Olympiad 2024"]
[Site "Budapest"]
[Date "2024.09.13"]
[Round "3.51"]
[White "Salvadora, Angelo"]
[Black "Francis, Nigel"]
[Result "0-1"]
[ECO "B30"]
[WhiteElo "1812"]
[BlackElo "1775"]
[Annotator "NA"]
[PlyCount "54"]
[EventDate "2024.09.05"]
[EventType "team-tourn"]
[EventCountry "HUN"]
[SourceTitle "playchess.com"]
[Source "ChessBase"]
[SourceQuality "1"]
[WhiteTeam "Palau"]
[BlackTeam "Dominica"]
[WhiteTeamCountry "PAL"]
[BlackTeamCountry "DMA"]
[TimeControl "40/5400+30:1800+30"]

1. e4 c5 2. Nf3 Nc6 3. Bc4 e6 4. d3 d5 5. exd5 exd5 6. Bb3 Nf6 7. O-O Be7 8. Re1 O-O 9. Nc3 d4 10. Ne4 b6 11. Bg5 Nxe4 12. Bxe7 Nxe7 13. Rxe4 Bb7 14. Re5 Nc6 15. Rf5 Na5 16. Ng5 Nxb3 17. axb3 g6 18. Re5 f6 19. Ne6 Qd6 20. Re2 Rfe8 21. Qe1 Kf7 22. Nf4 Qxf4 23. Rxe8 Rxe8 24. Qf1 a5 25. c3 Re5 26. b4 Bxg2 27. Qd1 Rg5 0-1

[Event "45th FIDE Olympiad 2024"]
[Site "Budapest"]
[Date "2024.09.13"]
[Round "3.52"]
[White "Draskovic, Luka"]
[Black "Lagarde, Maxime"]
[Result "1/2-1/2"]
[ECO "C02"]
[WhiteElo "2497"]
[BlackElo "2598"]
[Annotator "RC"]
[PlyCount "63"]
[EventDate "2024.09.05"]
[EventType "team-tourn"]
[EventCountry "HUN"]
[SourceTitle "playchess.com"]
[Source "ChessBase"]
[SourceQuality "1"]
[WhiteTeam "Montenegro"]
[BlackTeam "France"]
[WhiteTeamCountry "MNE"]
[BlackTeamCountry "FRA"]
[TimeControl "40/5400+30:1800+30"]

1. e4 {[%emt 0:00:10]} e6 {[%emt 0:00:03]} 2. d4 {[%emt 0:00:20]} d5 {[%emt 0:00:04]} 3. e5 {[%emt 0:00:49]} c5 {[%emt 0:00:04]} 4. c3 {[%emt 0:00:04]} Nc6 {[%emt 0:00:02]} 5. Nf3 {[%emt 0:00:08]} Nge7 {[%emt 0:00:06]} 6. Na3 {[%emt 0:01:10]} Bd7 {[%emt 0:00:14]} 7. Nc2 {[%emt 0:03:35]} Qa5 {[%emt 0:00:11]} 8. h4 {[%emt 0:10:28]} Nxd4 {[%emt 0:07:20]} 9. Ncxd4 {[%emt 0:02:17]} cxd4 {[%emt 0:00:07]} 10. Nxd4 {[%emt 0:06:38]} Nc6 {[%emt 0:04:02]} 11. Nxc6 {[%emt 0:04:15]} Bxc6 {[%emt 0:05:38]} 12. Be3 {[%emt 0:01:46]} Bb5 {[%emt 0:13:03]} 13. Bxb5+ {[%emt 0:09:17]} Qxb5 {[%emt 0:00:04]} 14. Qe2 {[%emt 0:00:47]} Qxe2+ {[%emt 0:08:01]} 15. Kxe2 {[%emt 0:00:27]} a6 {[%emt 0:01:00]} 16. h5 {[%emt 0:01:00]} Rc8 {[%emt 0:02:23]} 17. Bd4 {[%emt 0:09:34]} Be7 {[%emt 0:02:28]} 18. Kd3 {[%emt 0:03:29]} f5 {[%emt 0:04:31]} 19. Rh3 {[%emt 0:12:30]} O-O {[%emt 0:03:20]} 20. f4 {[%emt 0:04:02]} a5 {[%emt 0:09:58]} 21. a4 {[%emt 0:06:05]} Bc5 {[%emt 0:01:13]} 22. Bxc5 {[%emt 0:03:55]} Rxc5 {[%emt 0:00:18]} 23. b3 {[%emt 0:00:02]} Rfc8 {[%emt 0:01:28]} 24. Kc2 {[%emt 0:01:04]} b5 {[%emt 0:05:38]} 25. axb5 {[%emt 0:01:42]} Rxb5 {[%emt 0:00:05]} 26. Rd3 {[%emt 0:02:03]} Kf7 {[%emt 0:03:04]} 27. Ra4 {[%emt 0:01:34]} Rc7 {[%emt 0:01:37]} 28. Kb2 {[%emt 0:01:34]} Rbc5 {[%emt 0:02:08]} 29. Kc2 {[%emt 0:01:01]} Rb5 {[%emt 0:04:33]} 30. Kb2 {[%emt 0:01:17]} Rbc5 {[%emt 0:00:19]} 31. Kc2 {[%emt 0:00:07]} Rb5 {[%emt 0:00:15]} 32. Kb2 {[%emt 0:00:06]} 1/2-1/2

[Event "45th FIDE Olympiad 2024"]
[Site "Budapest"]
[Date "2024.09.13"]
[Round "3.52"]
[White "Auguiste, Lyndon"]
[Black "Mahor Jr, Manuel"]
[Result "1/2-1/2"]
[ECO "C10"]
[WhiteElo "1697"]
[BlackElo "1759"]
[Annotator "NA"]
[PlyCount "142"]
[EventDate "2024.09.05"]
[EventType "team-tourn"]
[EventCountry "HUN"]
[SourceTitle "playchess.com"]
[Source "ChessBase"]
[SourceQuality "1"]
[WhiteTeam "Dominica"]
[BlackTeam "Palau"]
[WhiteTeamCountry "DMA"]
[BlackTeamCountry "PAL"]
[TimeControl "40/5400+30:1800+30"]

1. e4 e6 2. Nc3 d5 3. d4 dxe4 4. Nxe4 Bd7 5. Nf3 Bc6 6. Bd3 Nd7 7. c3 Ngf6 8. Bg5 Be7 9. Nxf6+ Nxf6 10. O-O b6 11. Ne5 Bb7 12. Bxf6 Bxf6 13. Bb5+ Kf8 14. f4 Qd5 15. Qe2 Bxe5 16. fxe5 Ke7 17. Rf2 a6 18. Bc4 Qe4 19. Raf1 Raf8 20. Qh5 Qg6 21. Qd1 b5 22. Qb3 Qe4 23. Qb4+ Kd8 24. Bxe6 f6 25. Bf5 Qd5 26. Bh3 Bc8 27. g4 h5 28. Bg2 Qe6 29. gxh5 Rf7 30. Qb3 Rxh5 31. Qxe6 Bxe6 32. d5 Bh3 33. Bxh3 Rxh3 34. exf6 g6 35. Re1 Rd3 36. Re6 Rxd5 37. Rxa6 Rg5+ 38. Rg2 Rxg2+ 39. Kxg2 Ke8 40. Kg3 Rd7 41. Rc6 Kf7 42. h4 Rd2 43. b4 Rxa2 44. Rxc7+ Kxf6 45. Rc5 Rc2 46. Kf4 Rh2 47. Rc6+ Kg7 48. Kg3 Re2 49. Kf3 Rh2 50. Kg4 Rg2+ 51. Kh3 Re2 52. Rc5 Re3+ 53. Kg2 Re2+ 54. Kf3 Rh2 55. Rxb5 Rxh4 56. Rc5 Kf6 57. b5 Ke6 58. Ke2 Rh2+ 59. Kd3 Rh3+ 60. Kc4 Rh7 61. b6 Rb7 62. Kb5 Rg7 63. Rc7 Rxc7 64. bxc7 Kd7 65. Kb6 Kc8 66. Kc6 g5 67. Kd5 Kxc7 68. Ke4 Kc6 69. Kf5 Kd5 70. Kxg5 Kc4 71. Kf4 Kxc3 1/2-1/2